[Event "IIe Tournoi de GMI du C'Chartres Echecs"]
[Site "Chartres, France"]
[Date "2021.05.17"]
[Round "2.4"]
[White "Loiseau, Quentin"]
[Black "Duboue, Peio"]
[Result "1-0"]
[TimeControl "5400+30"]
[WhiteTitle "IM"]
[BlackTitle "FM"]
[WhiteElo "2455"]
[BlackElo "2431"]

1. e4 {[%clk 01:30:57]} {[%emt 00:00:02]} e5 {[%clk 01:30:56]} {[%emt
00:00:11]} 2. Nf3 {[%clk 01:31:23]} Nc6 {[%clk 01:31:23]} 3. Bb5 {[%clk
01:31:46]} {[%emt 00:00:08]} g6 {[%clk 01:31:49]} {[%emt 00:00:02]} 4. c3
{[%clk 01:32:07]} {[%emt 00:00:09]} a6 {[%clk 01:32:03]} {[%emt 00:00:20]} 5.
Ba4 {[%clk 01:32:00]} {[%emt 00:00:34]} Bg7 {[%clk 01:32:17]} {[%emt 00:00:16]}
6. d4 {[%clk 01:32:21]} {[%emt 00:00:09]} exd4 {[%clk 01:32:42]} {[%emt
00:00:05]} 7. cxd4 {[%clk 01:32:47]} {[%emt 00:00:04]} b5 {[%clk 01:33:07]}
{[%emt 00:00:04]} 8. Bc2 {[%clk 01:32:52]} {[%emt 00:00:25]} d6 {[%clk
01:32:51]} {[%emt 00:00:46]} 9. d5 {[%clk 01:32:54]} {[%emt 00:00:28]} Na5
{[%clk 01:32:07]} {[%emt 00:01:14]} 10. Bd2 {[%clk 01:30:06]} {[%emt 00:03:19]}
Bxb2 {[%clk 01:32:29]} {[%emt 00:00:08]} 11. Bxa5 {[%clk 01:30:28]} {[%emt
00:00:08]} Bxa1 {[%clk 01:32:55]} {[%emt 00:00:04]} 12. Nc3 {[%clk 01:30:31]}
{[%emt 00:00:27]} Bb2 {[%clk 01:32:33]} {[%emt 00:00:52]} 13. Qd2 {[%clk
01:29:58]} {[%emt 00:01:03]} Ne7 {[%clk 01:16:09]} {[%emt 00:16:54]} 14. Bb3
{[%clk 01:20:00]} {[%emt 00:10:28]} Ba3 {[%clk 01:14:31]} {[%emt 00:02:07]} 15.
Nb1 {[%clk 01:11:07]} {[%emt 00:09:23]} Bc5 {[%clk 01:14:53]} {[%emt 00:00:07]}
16. Bc3 {[%clk 01:11:21]} {[%emt 00:00:16]} f6 {[%clk 01:14:20]} {[%emt
00:01:03]} 17. Bxf6 {[%clk 01:10:04]} {[%emt 00:01:48]} Rf8 {[%clk 01:13:56]}
{[%emt 00:00:54]} 18. Qb2 {[%clk 01:00:09]} {[%emt 00:10:26]} Qd7 {[%clk
01:02:02]} {[%emt 00:12:24]} 19. O-O {[%clk 00:52:50]} {[%emt 00:07:48]} Ng8
{[%clk 00:58:45]} {[%emt 00:03:47]} 20. Bh4 {[%clk 00:47:08]} {[%emt 00:06:12]}
Rxf3 {[%clk 00:47:44]} {[%emt 00:11:31]} 21. gxf3 {[%clk 00:46:43]} {[%emt
00:00:54]} Qf7 {[%clk 00:47:53]} {[%emt 00:00:21]} 22. Nd2 {[%clk 00:28:18]}
{[%emt 00:18:56]} g5 {[%clk 00:40:57]} {[%emt 00:07:26]} 23. Bg3 {[%clk
00:28:18]} {[%emt 00:00:30]} h5 {[%clk 00:32:34]} {[%emt 00:08:53]} 24. Rc1
{[%clk 00:24:59]} {[%emt 00:03:48]} h4 {[%clk 00:31:45]} {[%emt 00:01:19]} 25.
Be5 {[%clk 00:24:21]} {[%emt 00:01:09]} g4 {[%clk 00:27:43]} {[%emt 00:04:32]}
26. Rxc5 {[%clk 00:22:34]} {[%emt 00:02:17]} dxc5 {[%clk 00:27:24]} {[%emt
00:00:49]} 27. f4 {[%clk 00:22:44]} {[%emt 00:00:19]} c4 {[%clk 00:25:08]}
{[%emt 00:02:46]} 28. Bd1 {[%clk 00:20:36]} {[%emt 00:02:38]} Ra7 {[%clk
00:06:16]} {[%emt 00:19:22]} 29. Nxc4 {[%clk 00:19:20]} {[%emt 00:01:46]} Rb7
{[%clk 00:05:59]} {[%emt 00:00:47]} 30. Ne3 {[%clk 00:18:44]} {[%emt 00:01:07]}
Rb6 {[%clk 00:06:07]} {[%emt 00:00:23]} 31. Qc3 {[%clk 00:16:51]} {[%emt
00:02:22]} Kd8 {[%clk 00:06:04]} {[%emt 00:00:33]} 32. Bb3 {[%clk 00:15:14]}
{[%emt 00:02:07]} Qh7 {[%clk 00:04:55]} {[%emt 00:01:38]} 33. f5 {[%clk
00:14:11]} {[%emt 00:01:33]} Nh6 {[%clk 00:02:04]} {[%emt 00:03:22]} 34. Qc5
{[%clk 00:12:24]} {[%emt 00:02:17]} Qe7 {[%clk 00:01:53]} {[%emt 00:00:41]} 35.
Qxe7+ {[%clk 00:08:19]} {[%emt 00:04:35]} Kxe7 {[%clk 00:02:19]} {[%emt
00:00:04]} 36. Bxc7 {[%clk 00:08:45]} {[%emt 00:00:04]} Rb7 {[%clk 00:02:47]}
{[%emt 00:00:02]} 37. Bf4 {[%clk 00:08:28]} {[%emt 00:00:46]} 1-0

[Event "IIe Tournoi de GMI du C'Chartres Echecs"]
[Site "Chartres, France"]
[Date "2021.05.17"]
[Round "2.5"]
[White "Flear, Glenn"]
[Black "Stephan, Victor"]
[Result "1-0"]
[TimeControl "5400+30"]
[WhiteTitle "GM"]
[BlackTitle "IM"]
[WhiteElo "2431"]
[BlackElo "2430"]

1. d4 {[%clk 01:30:56]} {[%emt 00:00:03]} Nf6 {[%clk 01:30:50]} {[%emt
00:00:11]} 2. c4 {[%clk 01:31:18]} {[%emt 00:00:09]} c5 {[%clk 01:31:10]}
{[%emt 00:00:09]} 3. d5 {[%clk 01:31:40]} {[%emt 00:00:08]} e6 {[%clk
01:31:29]} {[%emt 00:00:14]} 4. Nc3 {[%clk 01:31:42]} {[%emt 00:00:23]} exd5
{[%clk 01:31:49]} {[%emt 00:00:12]} 5. cxd5 {[%clk 01:32:04]} {[%emt 00:00:08]}
d6 {[%clk 01:32:08]} {[%emt 00:00:11]} 6. e4 {[%clk 01:31:29]} {[%emt
00:01:05]} g6 {[%clk 01:32:20]} {[%emt 00:00:18]} 7. Nge2 {[%clk 01:31:31]}
{[%emt 00:00:28]} Bg7 {[%clk 01:31:43]} {[%emt 00:01:07]} 8. Ng3 {[%clk
01:31:47]} {[%emt 00:00:14]} O-O {[%clk 01:30:51]} {[%emt 00:01:23]} 9. Be2
{[%clk 01:32:02]} {[%emt 00:00:13]} a6 {[%clk 01:29:18]} {[%emt 00:02:05]} 10.
a4 {[%clk 01:32:24]} {[%emt 00:00:08]} Nbd7 {[%clk 01:29:14]} {[%emt 00:00:33]}
11. O-O {[%clk 01:32:03]} {[%emt 00:00:50]} Re8 {[%clk 01:24:38]} {[%emt
00:05:07]} 12. f3 {[%clk 01:30:36]} {[%emt 00:01:57]} Rb8 {[%clk 01:18:30]}
{[%emt 00:06:37]} 13. Bg5 {[%clk 01:30:16]} {[%emt 00:00:50]} Qa5 {[%clk
01:15:56]} {[%emt 00:03:05]} 14. Qc2 {[%clk 01:13:44]} {[%emt 00:17:01]} h6
{[%clk 01:10:31]} {[%emt 00:05:56]} 15. Be3 {[%clk 01:03:08]} {[%emt 00:11:04]}
h5 {[%clk 01:05:44]} {[%emt 00:05:19]} 16. Nh1 {[%clk 00:57:30]} {[%emt
00:06:07]} h4 {[%clk 00:58:49]} {[%emt 00:07:25]} 17. Nf2 {[%clk 00:46:07]}
{[%emt 00:11:53]} Nh5 {[%clk 00:52:46]} {[%emt 00:06:33]} 18. Qd2 {[%clk
00:35:24]} {[%emt 00:11:13]} f5 {[%clk 00:45:57]} {[%emt 00:07:19]} 19. Bg5
{[%clk 00:33:57]} {[%emt 00:01:57]} Ne5 {[%clk 00:37:53]} {[%emt 00:08:34]} 20.
Bxh4 {[%clk 00:25:30]} {[%emt 00:08:58]} Nf7 {[%clk 00:37:37]} {[%emt
00:00:45]} 21. exf5 {[%clk 00:15:26]} {[%emt 00:10:34]} Bxf5 {[%clk 00:33:57]}
{[%emt 00:04:10]} 22. g4 {[%clk 00:13:51]} {[%emt 00:02:04]} Bh6 {[%clk
00:32:40]} {[%emt 00:01:48]} 23. Qd1 {[%clk 00:13:20]} {[%emt 00:01:02]} Qb4
{[%clk 00:30:31]} {[%emt 00:02:39]} 24. Nfe4 {[%clk 00:09:09]} {[%emt
00:04:41]} Be3+ {[%clk 00:25:59]} {[%emt 00:05:01]} 25. Kh1 {[%clk 00:08:15]}
{[%emt 00:01:24]} Bxe4 {[%clk 00:24:20]} {[%emt 00:02:08]} 26. Nxe4 {[%clk
00:08:32]} {[%emt 00:00:13]} Nf4 {[%clk 00:23:59]} {[%emt 00:00:51]} 27. Nf6+
{[%clk 00:06:30]} {[%emt 00:02:33]} Kg7 {[%clk 00:24:23]} {[%emt 00:00:06]} 28.
Nxe8+ {[%clk 00:06:56]} {[%emt 00:00:05]} Rxe8 {[%clk 00:24:49]} {[%emt
00:00:03]} 29. b3 {[%clk 00:06:21]} {[%emt 00:01:05]} Bd4 {[%clk 00:21:06]}
{[%emt 00:04:12]} 30. Be1 {[%clk 00:05:38]} {[%emt 00:01:14]} Qb6 {[%clk
00:21:24]} {[%emt 00:00:12]} 31. a5 {[%clk 00:05:48]} {[%emt 00:00:20]} Qd8
{[%clk 00:21:15]} {[%emt 00:00:38]} 32. Bc4 {[%clk 00:05:34]} {[%emt 00:00:43]}
Bxa1 {[%clk 00:18:42]} {[%emt 00:03:05]} 33. Qxa1+ {[%clk 00:05:59]} {[%emt
00:00:05]} Ne5 {[%clk 00:19:07]} {[%emt 00:00:05]} 34. Bg3 {[%clk 00:04:59]}
{[%emt 00:01:30]} Qf6 {[%clk 00:18:00]} {[%emt 00:01:37]} 35. Qd1 {[%clk
00:03:39]} {[%emt 00:01:51]} g5 {[%clk 00:17:00]} {[%emt 00:01:29]} 36. Re1
{[%clk 00:03:44]} {[%emt 00:00:22]} Rf8 {[%clk 00:14:32]} {[%emt 00:03:01]} 37.
Re4 {[%clk 00:03:09]} {[%emt 00:01:06]} Qg6 {[%clk 00:14:09]} {[%emt 00:00:53]}
38. Bxf4 {[%clk 00:02:47]} {[%emt 00:00:51]} gxf4 {[%clk 00:13:48]} {[%emt
00:00:51]} 39. Be2 {[%clk 00:02:52]} {[%emt 00:00:25]} Qh7 {[%clk 00:10:29]}
{[%emt 00:03:48]} 40. Qg1 {[%clk 00:01:40]} {[%emt 00:01:42]} Qh3 {[%clk
00:10:19]} {[%emt 00:00:41]} 41. Qg2 {[%clk 00:01:22]} {[%emt 00:00:48]} Qh4
{[%clk 00:10:44]} {[%emt 00:00:05]} 42. Bf1 {[%clk 00:01:36]} {[%emt 00:00:16]}
Rf7 {[%clk 00:10:32]} {[%emt 00:00:41]} 43. Kg1 {[%clk 00:01:23]} {[%emt
00:00:44]} Qd8 {[%clk 00:09:35]} {[%emt 00:01:27]} 44. Ra4 {[%clk 00:01:49]}
{[%emt 00:00:05]} Qh4 {[%clk 00:08:03]} {[%emt 00:02:01]} 45. Qf2 {[%clk
00:02:03]} {[%emt 00:00:15]} Qh7 {[%clk 00:07:57]} {[%emt 00:00:36]} 46. Re4
{[%clk 00:02:06]} {[%emt 00:00:28]} Qg6 {[%clk 00:07:32]} {[%emt 00:00:55]} 47.
h3 {[%clk 00:02:24]} {[%emt 00:00:12]} Qg5 {[%clk 00:07:01]} {[%emt 00:01:00]}
48. Kg2 {[%clk 00:02:28]} {[%emt 00:00:24]} Kf8 {[%clk 00:04:48]} {[%emt
00:02:45]} 49. h4 {[%clk 00:02:04]} {[%emt 00:00:55]} Qg6 {[%clk 00:04:32]}
{[%emt 00:00:45]} 50. h5 {[%clk 00:02:08]} {[%emt 00:00:27]} Qg5 {[%clk
00:04:40]} {[%emt 00:00:22]} 51. Be2 {[%clk 00:01:59]} {[%emt 00:00:39]} Nd7
{[%clk 00:04:36]} {[%emt 00:00:33]} 52. Bc4 {[%clk 00:02:08]} {[%emt 00:00:22]}
Nf6 {[%clk 00:03:27]} {[%emt 00:01:38]} 53. Re6 {[%clk 00:02:06]} {[%emt
00:00:33]} Nxh5 {[%clk 00:02:50]} {[%emt 00:01:07]} 54. Rxd6 {[%clk 00:01:32]}
{[%emt 00:01:05]} Ng3 {[%clk 00:03:03]} {[%emt 00:00:17]} 55. Re6 {[%clk
00:01:28]} {[%emt 00:00:35]} Qh4 {[%clk 00:02:42]} {[%emt 00:00:50]} 56. Qxc5+
{[%clk 00:01:26]} {[%emt 00:00:31]} Kg7 {[%clk 00:02:16]} {[%emt 00:00:56]} 57.
Qd4+ {[%clk 00:01:40]} {[%emt 00:00:16]} Kf8 {[%clk 00:02:41]} {[%emt
00:00:05]} 58. Qc5+ {[%clk 00:02:05]} {[%emt 00:00:06]} Kg7 {[%clk 00:03:08]}
{[%emt 00:00:03]} 59. Qg1 {[%clk 00:02:21]} {[%emt 00:00:13]} Qh7 {[%clk
00:01:57]} {[%emt 00:01:41]} 60. Qa1+ {[%clk 00:02:13]} {[%emt 00:00:39]} Kf8
{[%clk 00:02:20]} {[%emt 00:00:07]} 61. Bd3 {[%clk 00:02:20]} {[%emt 00:00:23]}
Qh4 {[%clk 00:02:05]} {[%emt 00:00:44]} 62. Qa3+ {[%clk 00:01:51]} {[%emt
00:01:00]} Kg8 {[%clk 00:01:54]} {[%emt 00:00:40]} 63. Re8+ {[%clk 00:01:03]}
{[%emt 00:01:18]} Kg7 {[%clk 00:02:23]} {[%emt 00:00:02]} 64. Qa1+ {[%clk
00:01:22]} {[%emt 00:00:11]} Qf6 {[%clk 00:00:38]} {[%emt 00:02:14]} 65. Qxf6+
{[%clk 00:01:32]} {[%emt 00:00:20]} Kxf6 {[%clk 00:00:54]} {[%emt 00:00:15]} 66.
Re6+ {[%clk 00:01:46]} {[%emt 00:00:16]} Kg7 {[%clk 00:00:47]} {[%emt
00:00:37]} 67. d6 {[%clk 00:01:55]} {[%emt 00:01:08]} Rd7 {[%clk 00:00:41]} 68.
Bg6 {[%clk 00:02:01]} {[%emt 00:00:13]} Rd8 {[%clk 00:00:48]} {[%emt 00:00:24]}
69. Bd3 {[%clk 00:02:12]} {[%emt 00:00:19]} Kf7 {[%clk 00:00:50]} {[%emt
00:00:27]} 70. Bc4 {[%clk 00:02:29]} {[%emt 00:00:12]} Kg7 {[%clk 00:01:17]}
{[%emt 00:00:04]} 71. Bd5 {[%clk 00:02:41]} {[%emt 00:00:18]} Kf7 {[%clk
00:00:59]} {[%emt 00:00:47]} 72. Kf2 {[%clk 00:02:27]} {[%emt 00:00:45]} Nh1+
{[%clk 00:00:46]} {[%emt 00:00:43]} 73. Ke1 {[%clk 00:02:46]} {[%emt 00:00:10]}
Ng3 {[%clk 00:00:56]} {[%emt 00:00:21]} 74. g5 {[%clk 00:02:19]} {[%emt
00:00:57]} Kg7 {[%clk 00:01:05]} {[%emt 00:00:21]} 75. Bxb7 {[%clk 00:02:02]}
{[%emt 00:00:48]} Nf5 {[%clk 00:01:24]} {[%emt 00:00:11]} 76. Bxa6 {[%clk
00:02:11]} {[%emt 00:00:22]} Nd4 {[%clk 00:01:12]} {[%emt 00:00:41]} 77. Re7+
{[%clk 00:02:00]} {[%emt 00:00:41]} Kg6 {[%clk 00:01:40]} {[%emt 00:00:02]} 78.
Bd3+ {[%clk 00:01:51]} {[%emt 00:00:39]} Kxg5 {[%clk 00:02:05]} {[%emt
00:00:05]} 79. Re5+ {[%clk 00:01:29]} {[%emt 00:00:52]} Kf6 {[%clk 00:02:04]}
{[%emt 00:00:31]} 80. Rd5 {[%clk 00:01:55]} {[%emt 00:00:04]} Nxf3+ {[%clk
00:02:18]} {[%emt 00:00:17]} 81. Kf2 {[%clk 00:01:05]} {[%emt 00:01:19]} Ke6
{[%clk 00:02:04]} {[%emt 00:00:44]} 82. Be4 {[%clk 00:00:56]} {[%emt 00:00:40]}
Ne5 {[%clk 00:02:06]} {[%emt 00:00:27]} 83. a6 {[%clk 00:01:12]} {[%emt
00:00:14]} Rd7 {[%clk 00:01:33]} {[%emt 00:01:03]} 84. Rd1 {[%clk 00:00:47]}
{[%emt 00:00:56]} Rg7 {[%clk 00:00:41]} {[%emt 00:01:22]} 85. b4 {[%clk
00:00:56]} {[%emt 00:00:21]} Ng4+ {[%clk 00:00:32]} {[%emt 00:00:39]} 86. Kf3
{[%clk 00:01:07]} {[%emt 00:00:18]} Ne3 {[%clk 00:00:43]} {[%emt 00:00:19]} 87.
Rd2 {[%clk 00:01:04]} {[%emt 00:00:34]} Nf1 {[%clk 00:00:32]} {[%emt 00:00:41]}
88. Rf2 {[%clk 00:01:04]} {[%emt 00:00:29]} Ng3 {[%clk 00:00:45]} {[%emt
00:00:16]} 89. Bb7 {[%clk 00:01:07]} {[%emt 00:00:27]} 1-0

[Event "IIe Tournoi de GMI du C'Chartres Echecs"]
[Site "Chartres, France"]
[Date "2021.05.18"]
[Round "3.1"]
[White "Duboue, Peio"]
[Black "Shirazi, Kamran"]
[Result "1/2-1/2"]
[TimeControl "5400+30"]
[WhiteTitle "FM"]
[BlackTitle "IM"]
[WhiteElo "2431"]
[BlackElo "2349"]

1. e4 {[%clk 00:32:44]} Nc6 {[%clk 00:37:48]} 2. d4 {[%clk 00:32:44]} e5 {[%clk
00:37:48]} 3. Nf3 {[%clk 00:32:44]} d5 {[%clk 00:37:48]} 4. exd5 {[%clk
00:32:44]} Qxd5 {[%clk 00:37:48]} 5. Nc3 {[%clk 00:32:44]} Bb4 {[%clk
00:37:48]} 6. Bd2 {[%clk 00:32:44]} Bxc3 {[%clk 00:37:48]} 7. Bxc3 {[%clk
00:32:44]} e4 {[%clk 00:37:48]} 8. Ne5 {[%clk 00:32:44]} Nxe5 {[%clk 00:37:48]}
9. dxe5 {[%clk 00:32:44]} Ne7 {[%clk 00:37:48]} 10. Qd4 {[%clk 00:32:44]} Be6
{[%clk 00:37:48]} 11. Qa4+ {[%clk 00:32:44]} Bd7 {[%clk 00:37:48]} 12. Qb3
{[%clk 00:32:44]} Qc6 {[%clk 00:37:48]} 13. Bc4 {[%clk 00:32:44]} Be6 {[%clk
00:37:48]} 14. Bb5 {[%clk 00:32:44]} Bxb3 {[%clk 00:37:48]} 15. Bxc6+ {[%clk
00:32:44]} Nxc6 {[%clk 00:37:48]} 16. axb3 {[%clk 00:32:44]} O-O-O {[%clk
00:37:48]} 17. O-O {[%clk 00:32:44]} b5 {[%clk 00:37:48]} 18. b4 {[%clk
00:32:44]} Rd5 {[%clk 00:37:48]} 19. Rfe1 {[%clk 00:32:44]} a5 {[%clk
00:37:48]} 20. Rxe4 {[%clk 00:32:44]} axb4 {[%clk 00:37:48]} 21. Bxb4 {[%clk
00:32:44]} Rhd8 {[%clk 00:37:48]} 22. Bc3 {[%clk 00:32:44]} Rd1+ {[%clk
00:37:48]} 23. Re1 {[%clk 00:32:44]} Rxe1+ {[%clk 00:37:48]} 24. Bxe1 {[%clk
00:32:44]} Rd5 {[%clk 00:37:48]} 25. f4 {[%clk 00:32:44]} Nd4 {[%clk 00:37:48]}
26. Ra8+ {[%clk 00:32:44]} Kd7 {[%clk 00:37:48]} 27. Bg3 {[%clk 00:32:44]} Ne2+
{[%clk 00:37:48]} 28. Kf2 {[%clk 00:32:44]} Rd2 {[%clk 00:37:48]} 29. f5 {[%clk
00:32:44]} Nxg3+ {[%clk 00:37:48]} 30. Kxg3 {[%clk 00:32:44]} Rxc2 {[%clk
00:37:48]} 31. Rh8 {[%clk 00:32:44]} Re2 {[%clk 00:37:48]} 32. Rxh7 {[%clk
00:32:44]} Rxe5 {[%clk 00:37:48]} 33. Kf4 {[%clk 00:32:44]} Re2 {[%clk
00:37:48]} 34. Rxg7 {[%clk 00:32:44]} Ke7 {[%clk 00:37:48]} 35. b3 {[%clk
00:32:44]} Kf6 {[%clk 00:37:48]} 36. Rg3 {[%clk 00:32:44]} Rf2+ {[%clk
00:37:48]} 37. Rf3 {[%clk 00:32:44]} Rxg2 {[%clk 00:37:48]} 38. Rc3 {[%clk
00:32:44]} Rxh2 {[%clk 00:37:48]} 39. Rc6+ {[%clk 00:32:44]} Kg7 {[%clk
00:37:48]} 40. Rxc7 {[%clk 00:32:44]} Rh3 {[%clk 00:37:48]} 41. b4 {[%clk
00:32:44]} Rb3 {[%clk 00:37:48]} 42. Kg5 {[%clk 00:32:44]} Rg3+ {[%clk
00:37:48]} 43. Kf4 {[%clk 00:32:44]} Rb3 {[%clk 00:37:48]} 44. Ke5 {[%clk
00:32:44]} Rxb4 {[%clk 00:37:48]} 45. f6+ {[%clk 00:32:44]} Kg6 {[%clk
00:37:48]} 46. Rc8 {[%clk 00:32:44]} Rc4 {[%clk 00:37:48]} 47. Rg8+ {[%clk
00:32:44]} Kh6 {[%clk 00:37:48]} 48. Rh8+ {[%clk 00:32:44]} Kg6 {[%clk
00:37:48]} 49. Rg8+ {[%clk 00:32:44]} Kh6 {[%clk 00:37:48]} 50. Rh8+ {[%clk
00:32:44]} Kg6 {[%clk 00:37:48]} 51. Rg8+ {[%clk 00:32:44]} 1/2-1/2

[Event "IIe Tournoi de GMI du C'Chartres Echecs"]
[Site "Chartres, France"]
[Date "2021.05.18"]
[Round "3.2"]
[White "Stephan, Victor"]
[Black "Loiseau, Quentin"]
[Result "0-1"]
[TimeControl "5400+30"]
[WhiteTitle "IM"]
[BlackTitle "IM"]
[WhiteElo "2430"]
[BlackElo "2455"]

1. d4 {[%clk 01:30:56]} {[%emt 00:00:03]} Nf6 {[%clk 01:30:34]} {[%emt
00:00:27]} 2. c4 {[%clk 01:31:15]} {[%emt 00:00:10]} c5 {[%clk 01:30:42]}
{[%emt 00:00:22]} 3. d5 {[%clk 01:31:18]} {[%emt 00:00:27]} b5 {[%clk
01:30:48]} {[%emt 00:00:25]} 4. a4 {[%clk 01:28:23]} {[%emt 00:03:24]} Qa5+
{[%clk 01:30:40]} {[%emt 00:00:38]} 5. Bd2 {[%clk 01:28:11]} {[%emt 00:00:42]}
b4 {[%clk 01:30:50]} {[%emt 00:00:21]} 6. Qc2 {[%clk 01:28:09]} {[%emt
00:00:31]} g6 {[%clk 01:30:27]} {[%emt 00:00:54]} 7. e4 {[%clk 01:28:24]}
{[%emt 00:00:15]} d6 {[%clk 01:30:13]} {[%emt 00:00:44]} 8. f4 {[%clk
01:26:26]} {[%emt 00:02:27]} Bg7 {[%clk 01:29:27]} {[%emt 00:01:16]} 9. Bd3
{[%clk 01:26:30]} {[%emt 00:00:26]} O-O {[%clk 01:29:00]} {[%emt 00:00:58]} 10.
Nf3 {[%clk 01:26:38]} {[%emt 00:00:22]} e6 {[%clk 01:28:49]} {[%emt 00:00:42]}
11. dxe6 {[%clk 01:12:11]} {[%emt 00:14:56]} Bxe6 {[%clk 01:23:28]} {[%emt
00:05:51]} 12. e5 {[%clk 01:09:08]} {[%emt 00:03:32]} dxe5 {[%clk 01:22:22]}
{[%emt 00:01:37]} 13. fxe5 {[%clk 01:08:47]} {[%emt 00:00:51]} Ng4 {[%clk
01:22:17]} {[%emt 00:00:35]} 14. Be4 {[%clk 01:07:40]} {[%emt 00:01:36]} Nd7
{[%clk 01:22:36]} {[%emt 00:00:13]} 15. Bxa8 {[%clk 01:06:32]} {[%emt
00:01:38]} Rxa8 {[%clk 01:22:52]} {[%emt 00:00:14]} 16. O-O {[%clk 00:58:07]}
{[%emt 00:08:53]} Ndxe5 {[%clk 01:20:15]} {[%emt 00:03:09]} 17. Bf4 {[%clk
00:45:54]} {[%emt 00:12:42]} Bf5 {[%clk 00:58:54]} {[%emt 00:21:51]} 18. Qb3
{[%clk 00:44:07]} {[%emt 00:02:17]} Nd3 {[%clk 00:58:37]} {[%emt 00:00:47]} 19.
Bg5 {[%clk 00:37:41]} {[%emt 00:06:56]} Qc7 {[%clk 00:57:20]} {[%emt 00:01:48]}
20. Bh4 {[%clk 00:32:36]} {[%emt 00:05:35]} Re8 {[%clk 00:44:35]} {[%emt
00:13:15]} 21. Bg3 {[%clk 00:30:38]} {[%emt 00:02:27]} Qd8 {[%clk 00:42:59]}
{[%emt 00:02:07]} 22. Kh1 {[%clk 00:28:12]} {[%emt 00:02:55]} Re3 {[%clk
00:40:47]} {[%emt 00:02:43]} 23. Kg1 {[%clk 00:25:51]} {[%emt 00:02:51]} Bd4
{[%clk 00:39:59]} {[%emt 00:01:18]} 24. Nxd4 {[%clk 00:21:51]} {[%emt
00:04:30]} Qxd4 {[%clk 00:40:27]} {[%emt 00:00:03]} 0-1